fUST/lending_fUST_20240509
["ID","MTS","AMOUNT","RATE_DAILY","PERIOD"]
[326653442,1715202637022,-3445.44206571,0.00019176,2]
[326653443,1715202637033,-5310.69010116,0.00019177,2]
[326653444,1715202637042,-160.142026,0.00019178,2]
[326653445,1715202637052,-212.243936,0.00019178,2]
[326653446,1715202637063,-4655.78175388,0.000199,2]
[326653447,1715202637073,-160.01,0.0001999,3]
[326653448,1715202637083,-275.23837051,0.00019995,2]
[326653449,1715202637094,-500.0,0.00019995,2]
[326653450,1715202637105,-500.0,0.00019995,2]
[326653451,1715202637116,-500.0,0.00019995,2]
[326653452,1715202637127,-500.0,0.00019995,2]
[326653453,1715202637138,-500.0,0.00019995,2]
[326653454,1715202637151,-500.0,0.00019995,2]
[326653455,1715202637161,-500.0,0.00019995,2]
[326653456,1715202637173,-500.0,0.00019995,2]
[326653457,1715202637184,-500.0,0.00019995,2]
[326653458,1715202637196,-500.0,0.00019995,2]
[326653459,1715202637208,-500.0,0.00019995,2]
[326653460,1715202637218,-500.0,0.00019995,2]
[326653461,1715202637229,-500.0,0.00019995,2]
[326653462,1715202637239,-288.06023767,0.00019995,2]
[326653527,1715202642713,-500.0,0.00019994,2]
[326653529,1715202642723,-500.0,0.00019994,2]
[326653531,1715202642733,-500.0,0.00019994,2]
[326653533,1715202642743,-263.871444,0.00019997,2]
[326653535,1715202642753,-154.80968392,0.00019997,2]
[326653543,1715202642763,-251.65121823,0.00019997,2]
[326653544,1715202642915,-162.93320162,0.00019997,2]
[326653545,1715202642928,-162.65609046,0.00019997,2]
[326653547,1715202642938,-155.8831673,0.00019997,2]
[326653549,1715202642948,-200.0,0.00019997,2]
[326653551,1715202642958,-214.01050904,0.00019997,2]
[326653553,1715202642968,-1685.75404763,0.00019997,2]
[326653555,1715202642978,-286.14089474,0.00019997,2]
[326653557,1715202642988,-163.63739166,0.00019997,2]
[326653559,1715202642998,-277.31837827,0.00019997,2]
[326653561,1715202643009,-171.01007263,0.00019997,2]
[326653563,1715202643019,-155.16959342,0.00019997,2]
[326653564,1715202643028,-265.96631983,0.00019997,2]
[326653566,1715202643039,-272.43557424,0.00019998,2]
[326653568,1715202643048,-1026.35919841,0.00019998,2]
[326653570,1715202643058,-524.11454042,0.00019998,2]
[326653572,1715202643069,-266.32668051,0.00019998,2]
[326653574,1715202643078,-255.67866336,0.00019998,2]
[326653576,1715202643088,-702.50594434,0.00019998,2]
[326653578,1715202643099,-281.47653233,0.00019998,2]
[326653580,1715202643108,-301.46911718,0.00019998,2]
[326653582,1715202643118,-200.56328493,0.00019998,2]
[326653584,1715202643128,-500.0,0.00019999,2]
[326653586,1715202643137,-296.99245836,0.00019999,2]
[326653588,1715202643147,-500.0,0.00019999,2]
[326653590,1715202643157,-199.93671501,0.00019999,2]
[326653592,1715202643166,-460.16045936,0.00019999,2]
[326653594,1715202643178,-228.13515676,0.00019999,2]
[326653596,1715202643187,-370.97169293,0.00019999,2]
[326653598,1715202643197,-10047.16136432,0.0002,2]
[326653640,1715202652092,-219.58186566,0.00019993,2]
[326653643,1715202652102,-500.0,0.00019994,2]
[326653646,1715202652111,-284.04567951,0.00019994,2]
[326653648,1715202652121,-500.0,0.00019994,2]
[326653651,1715202652130,-4645.87245484,0.0002,5]
[326653655,1715202652142,-775.56861677,0.0002,5]
[326653659,1715202652155,-6768.59999999,0.0002,5]
[326654083,1715202656507,-500.0,0.00019994,2]
[326654085,1715202656517,-500.0,0.00019994,2]
[326654087,1715202656526,-509.60330033,0.0002,5]
[326657458,1715203775148,-430.398791,0.0001589,2]
[326657459,1715203777907,-166.1077,0.0001589,2]
[326657460,1715203779336,-5210.0,0.00017445,2]
[326657461,1715203780505,-183.12182719,0.00017446,2]
[326657462,1715203781709,-1709.4519652,0.00017547,2]
[326657463,1715203782712,-254.275563,0.00018168,2]
[326657464,1715203784476,-2630.824007,0.00018427,2]
[326657465,1715203787742,-194.10867769,0.00018627,2]
[326657466,1715203790931,-2628.34812808,0.00018627,2]
[326657467,1715203792187,-218.20211624,0.00018627,2]
[326657468,1715203793492,-1335.336446,0.00018628,2]
[326657469,1715203794312,-15049.10121964,0.00018629,2]
[326657472,1715203842243,-775.66762932,0.00018168,2]
[326657479,1715203842260,-1861.19508071,0.00018168,2]
[326657486,1715203842275,-13486.15836018,0.00018168,2]
[326657492,1715203842287,-285.29538196,0.00018168,2]
[326657496,1715203842299,-24900.0,0.00018262,2]
[326657502,1715203842310,-5210.0,0.00018627,2]
[326657506,1715203842322,-1882.33843824,0.00018628,2]
[326657511,1715203842334,-366.63143763,0.000188,2]
[326657515,1715203842346,-1786.06457088,0.000189,2]
[326657519,1715203842358,-185.3742,0.00019178,2]
[326657524,1715203842370,-532.10605652,0.00019978,2]
[326658140,1715203849432,-985.47,0.00019978,2]
[326658143,1715203849446,-3826.42352727,0.00019978,2]
[326658146,1715203849462,-2605.13830082,0.00019978,2]
[326658148,1715203849473,-467.28,0.0001999,3]
[326658150,1715203849484,-500.0,0.00019996,2]
[326658152,1715203849494,-500.0,0.00019996,2]
[326658154,1715203849506,-500.0,0.00019996,2]
[326658156,1715203849518,-500.0,0.00019996,2]
[326658159,1715203849528,-321.64731655,0.00019996,2]
[326658162,1715203849552,-500.0,0.00019996,2]
[326658164,1715203849563,-500.0,0.00019996,2]
[326658166,1715203849574,-500.0,0.00019996,2]
[326658168,1715203849584,-314.2698051,0.00019996,2]
[326658170,1715203849596,-500.0,0.00019996,2]
[326658188,1715203849756,-500.0,0.00019996,2]
[326658190,1715203849769,-1425.13119939,0.00019998,2]
[326658192,1715203849782,-818.14050438,0.00019998,2]
[326658194,1715203849792,-3056.17446337,0.00019998,2]
[326658197,1715203849804,-2132.67627155,0.00019998,2]
[326658199,1715203849815,-273.25764425,0.00019998,2]
[326658201,1715203849825,-1396.02575092,0.00019998,2]
[326658203,1715203849835,-604.62485122,0.00019998,2]
[326658205,1715203849844,-154.73694719,0.00019998,2]
[326658207,1715203849858,-830.25500651,0.00019998,2]
[326658208,1715203849869,-894.24108922,0.00019998,2]
[326658210,1715203849879,-299.97287786,0.00019999,2]
[326658212,1715203849889,-411.49733972,0.00019999,2]
[326658214,1715203849899,-2864.09972907,0.0002,5]
[326658217,1715203849911,-23950.8610516,0.0002,5]
[326658219,1715203849922,-10793.40466569,0.0002,2]
[326658221,1715203849931,-53864.79893812,0.0002,2]
[326658223,1715203849941,-5467.6138057,0.0002,2]
[326658225,1715203849951,-330.43257549,0.0002,2]
[326658227,1715203849960,-379.96231687,0.0002,2]
[326658229,1715203849970,-279.0021805,0.0002,2]
[326658231,1715203849980,-521.50201214,0.0002,2]
[326658233,1715203849989,-120914.47972149,0.0002,2]
[326658235,1715203850002,-285.78530734,0.0002,2]
[326658237,1715203850012,-172.41737463,0.0002,2]
[326658239,1715203850022,-200.0,0.0002,2]
[326658241,1715203850032,-328.13909225,0.0002,2]
[326658243,1715203850043,-1816.3618899,0.0002,4]
[326658245,1715203850052,-154.75239617,0.0002,2]
[326658247,1715203850062,-400.0,0.0002,2]
[326658249,1715203850071,-245.6801007,0.0002,2]
[326658251,1715203850081,-167.87512938,0.0002,2]
[326658253,1715203850091,-154.73694719,0.0002,2]
[326658255,1715203850101,-52516.44035797,0.0002,2]
[326658257,1715203850110,-7113.85552401,0.0002,2]
[326658259,1715203850120,-4239.70384687,0.0002,2]
[326658261,1715203850129,-53148.17017338,0.0002,2]
[326658263,1715203850140,-160.0,0.0002,2]
[326658265,1715203850149,-154.78330338,0.0002,2]
[326658267,1715203850159,-2086.15678154,0.0002,2]
[326658269,1715203850168,-208.72073891,0.0002,2]
[326658271,1715203850177,-151.0,0.0002,2]
[326658273,1715203850187,-151.0,0.0002,2]
[326658275,1715203850196,-151.0,0.0002,2]
[326658277,1715203850207,-151.0,0.0002,2]
[326658279,1715203850216,-151.0,0.0002,2]
[326658281,1715203850225,-205.44382383,0.0002,2]
[326658283,1715203850235,-20000.0,0.0002,5]
[326658285,1715203850244,-151.0,0.0002,2]
[326658287,1715203850255,-151.0,0.0002,2]
[326658289,1715203850265,-151.0,0.0002,2]
[326658291,1715203850275,-151.0,0.0002,2]
[326658293,1715203850284,-151.0,0.0002,2]
[326658295,1715203850294,-151.0,0.0002,2]
[326658297,1715203850304,-151.0,0.0002,2]
[326658299,1715203850313,-151.0,0.0002,2]
[326658301,1715203850322,-251.980604,0.0002,2]
[326658303,1715203850332,-151.0,0.0002,2]
[326658305,1715203850341,-151.0,0.0002,2]
[326658307,1715203850350,-3127.02544304,0.0002,7]
[326658309,1715203850360,-151.0,0.0002,2]
[326658311,1715203850370,-151.0,0.0002,2]
[326658313,1715203850379,-151.0,0.0002,2]
[326658315,1715203850389,-151.0,0.0002,2]
[326658317,1715203850398,-151.0,0.0002,2]
[326658319,1715203850411,-1007.35182,0.0002,2]
[326658321,1715203850420,-1007.35182,0.0002,2]
[326658324,1715203850430,-1007.35182,0.0002,2]
[326658326,1715203850439,-151.0,0.0002,2]
[326658328,1715203850449,-151.0,0.0002,2]
[326658329,1715203850458,-1007.35182,0.0002,2]
[326658331,1715203850467,-1007.35182,0.0002,2]
[326658333,1715203850476,-1007.35182,0.0002,2]
[326658335,1715203850485,-1007.35182,0.0002,2]
[326658337,1715203850496,-1007.35182,0.0002,2]
[326658339,1715203850507,-1007.35182,0.0002,2]
[326658342,1715203850516,-1007.35182,0.0002,2]
[326658343,1715203850524,-1007.35182,0.0002,2]
[326658346,1715203850533,-1007.35182,0.0002,2]
[326658348,1715203850543,-1007.35182,0.0002,2]
[326658350,1715203850552,-1007.35182,0.0002,2]
[326658352,1715203850561,-176.237602,0.0002,2]
[326658353,1715203850570,-176.237602,0.0002,2]
[326658356,1715203850579,-176.237602,0.0002,2]
[326658357,1715203850588,-176.237602,0.0002,2]
[326658359,1715203850598,-176.237602,0.0002,2]
[326658360,1715203850607,-176.237602,0.0002,2]
[326658361,1715203850616,-176.237602,0.0002,2]
[326658362,1715203850626,-176.237602,0.0002,2]
[326658363,1715203850635,-176.237602,0.0002,2]
[326658364,1715203850645,-176.237602,0.0002,2]
[326658365,1715203850654,-176.237602,0.0002,2]
[326658366,1715203850664,-176.237602,0.0002,2]
[326658367,1715203850674,-176.237602,0.0002,2]
[326658368,1715203850683,-176.237602,0.0002,2]
[326658369,1715203850692,-183.225876,0.0002,2]
[326658370,1715203850702,-320.921972,0.0002,2]
[326658371,1715203850711,-320.921972,0.0002,2]
[326658372,1715203850720,-320.921972,0.0002,2]
[326658373,1715203850729,-320.921972,0.0002,2]
[326658374,1715203850738,-320.921972,0.0002,2]
[326658375,1715203850748,-320.921972,0.0002,2]
[326658376,1715203850758,-320.921972,0.0002,2]
[326658377,1715203850768,-320.921972,0.0002,2]
[326658378,1715203850780,-320.921972,0.0002,2]
[326658379,1715203850789,-320.921972,0.0002,2]
[326658380,1715203850799,-320.921972,0.0002,2]
[326658381,1715203850809,-320.921972,0.0002,2]
[326658382,1715203850819,-320.921972,0.0002,2]
[326658383,1715203850829,-320.921972,0.0002,2]
[326658384,1715203850839,-320.921972,0.0002,2]
[326658385,1715203850848,-320.921972,0.0002,2]
[326658386,1715203850860,-320.921972,0.0002,2]
[326658387,1715203850869,-320.921972,0.0002,2]
[326658388,1715203850879,-320.921972,0.0002,2]
[326658389,1715203850889,-320.921982,0.0002,2]
[326658390,1715203850899,-151.0,0.0002,2]
[326658391,1715203850908,-151.0,0.0002,2]
[326658392,1715203850917,-151.0,0.0002,2]
[326658393,1715203850927,-151.0,0.0002,2]
[326658394,1715203850936,-272.834512,0.0002,2]
[326658395,1715203850945,-151.0,0.0002,2]
[326658396,1715203850955,-151.631885,0.0002,2]
[326658397,1715203850964,-240.753817,0.0002,2]
[326658398,1715203850974,-240.753817,0.0002,2]
[326658399,1715203850983,-240.753817,0.0002,2]
[326658400,1715203850992,-240.753817,0.0002,2]
[326658401,1715203851003,-240.753817,0.0002,2]
[326658402,1715203851014,-240.753817,0.0002,2]
[326658403,1715203851023,-240.753817,0.0002,2]
[326658404,1715203851033,-240.753817,0.0002,2]
[326658405,1715203851042,-240.753817,0.0002,2]
[326658406,1715203851052,-240.753817,0.0002,2]
[326658407,1715203851061,-240.753817,0.0002,2]
[326658408,1715203851070,-240.753817,0.0002,2]
[326658409,1715203851079,-240.753817,0.0002,2]
[326658410,1715203851088,-240.753817,0.0002,2]
[326658411,1715203851098,-151.0,0.0002,2]
[326658412,1715203851107,-240.753817,0.0002,2]
[326658413,1715203851116,-185.376343,0.0002,2]
[326658414,1715203851125,-240.753817,0.0002,2]
[326658415,1715203851134,-151.0,0.0002,2]
[326658416,1715203851144,-240.753817,0.0002,2]
[326658417,1715203851154,-151.0,0.0002,2]
[326658418,1715203851164,-185.376343,0.0002,2]
[326658419,1715203851173,-240.753817,0.0002,2]
[326658420,1715203851182,-185.376343,0.0002,2]
[326658421,1715203851192,-151.0,0.0002,2]
[326658422,1715203851201,-240.753817,0.0002,2]
[326658423,1715203851211,-220.018025,0.0002,2]
[326658424,1715203851220,-185.376343,0.0002,2]
[326658425,1715203851229,-240.753819,0.0002,2]
[326658426,1715203851238,-185.376343,0.0002,2]
[326658427,1715203851247,-185.376343,0.0002,2]
[326658428,1715203851257,-185.376343,0.0002,2]
[326658429,1715203851267,-185.376343,0.0002,2]
[326658430,1715203851276,-185.376343,0.0002,2]
[326658431,1715203851285,-185.376343,0.0002,2]
[326658432,1715203851294,-185.376343,0.0002,2]
[326658433,1715203851303,-185.376343,0.0002,2]
[326658434,1715203851312,-185.376343,0.0002,2]
[326658435,1715203851321,-185.376343,0.0002,2]
[326658436,1715203851331,-185.376343,0.0002,2]
[326658437,1715203851340,-185.376343,0.0002,2]
[326658438,1715203851349,-185.376343,0.0002,2]
[326658439,1715203851358,-185.376343,0.0002,2]
[326658440,1715203851367,-185.376343,0.0002,2]
[326658441,1715203851376,-185.37635252,0.0002,2]
[326658442,1715203851386,-2459.811996,0.0002,2]
[326658443,1715203851395,-2459.811996,0.0002,2]
[326658444,1715203851405,-2459.811996,0.0002,2]
[326658445,1715203851414,-2459.811996,0.0002,2]
[326658446,1715203851423,-2459.811996,0.0002,2]
[326658447,1715203851432,-2459.811996,0.0002,2]
[326658448,1715203851442,-2459.811996,0.0002,2]
[326658450,1715203851451,-2459.811996,0.0002,2]
[326658452,1715203851460,-2459.811996,0.0002,2]
[326658454,1715203851470,-2459.811996,0.0002,2]
[326658455,1715203851480,-2459.811996,0.0002,2]
[326658457,1715203851489,-2459.811996,0.0002,2]
[326658459,1715203851499,-2459.811996,0.0002,2]
[326658461,1715203851509,-2459.811996,0.0002,2]
[326658462,1715203851518,-2459.811996,0.0002,2]
[326658463,1715203851527,-2459.811996,0.0002,2]
[326658464,1715203851536,-2459.811996,0.0002,2]
[326658465,1715203851546,-2459.811996,0.0002,2]
[326658466,1715203851555,-617.251354,0.0002,2]
[326658467,1715203851565,-617.251354,0.0002,2]
[326658468,1715203851574,-617.251354,0.0002,2]
[326658469,1715203851584,-2459.811996,0.0002,2]
[326658470,1715203851594,-2459.811987,0.0002,2]
[326658471,1715203851605,-617.251354,0.0002,2]
[326658472,1715203851615,-617.251354,0.0002,2]
[326658473,1715203851624,-617.251354,0.0002,2]
[326658474,1715203851634,-617.251354,0.0002,2]
[326658475,1715203851644,-617.251354,0.0002,2]
[326658476,1715203851654,-617.251354,0.0002,2]
[326658477,1715203851663,-200.0,0.0002,2]
[326658478,1715203851673,-617.251354,0.0002,2]
[326658479,1715203851683,-617.251354,0.0002,2]
[326658480,1715203851692,-617.251354,0.0002,2]
[326658481,1715203851701,-617.251354,0.0002,2]
[326658482,1715203851711,-617.251354,0.0002,2]
[326658483,1715203851722,-617.251354,0.0002,2]
[326658484,1715203851731,-617.251354,0.0002,2]
[326658485,1715203851740,-617.251354,0.0002,2]
[326658486,1715203851751,-617.251354,0.0002,2]
[326658487,1715203851760,-617.251354,0.0002,2]
[326658488,1715203851771,-617.251364,0.0002,2]
[326658489,1715203851783,-151.0,0.0002,2]
[326658490,1715203851793,-40775.99001056,0.0002,2]
[326658491,1715203851804,-391.61322953,0.000203,2]
[326658492,1715203851814,-834.57719078,0.00020911,2]
[326658493,1715203851824,-155.13745691,0.00020913,2]
[326658494,1715203851833,-236.86260148,0.00021,2]
[326658495,1715203851842,-3157.2831088,0.00021,7]
[326658496,1715203851852,-39581.20312761,0.00021,2]
[326658497,1715203851862,-10021.50074893,0.00021,2]
[326658498,1715203851871,-197.46538583,0.00021,2]
[326658499,1715203851881,-151.0,0.00021,2]
[326658500,1715203851890,-151.0,0.00021,2]
[326658501,1715203851899,-151.0,0.00021,2]
[326658502,1715203851908,-46.26274157,0.00021,2]
[326658978,1715203862331,-1866.41167338,0.00018629,2]
[326658979,1715203862341,-500.0,0.00019996,2]
[326658981,1715203862350,-500.0,0.00019996,2]
[326658984,1715203862368,-500.0,0.00019996,2]
[326658986,1715203862380,-500.0,0.00019996,2]
[326658989,1715203862391,-198.22729772,0.00019996,2]
[326658991,1715203862401,-500.0,0.00019996,2]
[326658992,1715203862412,-4592.20601955,0.00019999,2]
[326658994,1715203862425,-617.79398045,0.00019999,2]
[326658995,1715203862435,-151.0,0.0002,2]
[326658996,1715203862445,-151.0,0.0002,2]
[326658997,1715203862454,-151.0,0.0002,2]
[326658998,1715203862464,-151.0,0.0002,2]
[326658999,1715203862474,-151.0,0.0002,2]
[326659000,1715203862485,-151.0,0.0002,2]
[326659001,1715203862494,-379.96231687,0.0002,2]
[326659002,1715203862504,-232.42216343,0.00021,2]
[326659003,1715203862514,-1007.35182,0.00021,2]
[326659004,1715203862524,-1007.35182,0.00021,2]
[326659005,1715203862533,-1007.35182,0.00021,2]
[326659006,1715203862542,-1007.35182,0.00021,2]
[326659007,1715203862551,-176.237602,0.00021,2]
[326659008,1715203862560,-176.237602,0.00021,2]
[326659009,1715203862569,-176.237602,0.00021,2]
[326659010,1715203862578,-176.237602,0.00021,2]
[326659011,1715203862588,-1122.63546769,0.00021227,2]
[326659012,1715203862597,-166.666666,0.00021644,2]
[326659013,1715203862606,-155.81586083,0.0002191,2]
[326659014,1715203862615,-1007.35182,0.0002191,2]
[326659015,1715203862626,-1007.351813,0.0002191,2]
[326659016,1715203862635,-176.237602,0.0002191,2]
[326659017,1715203862644,-176.237612,0.0002191,2]
[326659018,1715203862653,-500.0,0.00021917,2]
[326659019,1715203862662,-500.0,0.00021917,2]
[326659020,1715203862672,-594.83,0.00021917,2]
[326659021,1715203862681,-10000.0,0.00021918,2]
[326659022,1715203862690,-314.39974,0.00021918,2]
[326659023,1715203862699,-314.39974,0.00021918,2]
[326659024,1715203862709,-314.39974,0.00021918,2]
[326659025,1715203862718,-314.39974,0.00021918,2]
[326659026,1715203862728,-314.39974,0.00021918,2]
[326659027,1715203862737,-314.39974,0.00021918,2]
[326659028,1715203862747,-314.39974,0.00021918,2]
[326659029,1715203862756,-314.39974,0.00021918,2]
[326659030,1715203862766,-314.39974,0.00021918,2]
[326659031,1715203862778,-314.39974,0.00021918,2]
[326659032,1715203862787,-314.39974,0.00021918,2]
[326659033,1715203862796,-314.39974,0.00021918,2]
[326659034,1715203862806,-314.39974,0.00021918,2]
[326659035,1715203862815,-314.39974,0.00021918,2]
[326659036,1715203862824,-314.39974,0.00021918,2]
[326659037,1715203862833,-314.39974,0.00021918,2]
[326659038,1715203862843,-314.39974,0.00021918,2]
[326659039,1715203862852,-314.39974,0.00021918,2]
[326659040,1715203862863,-314.39974,0.00021918,2]
[326659041,1715203862872,-314.399747,0.00021918,2]
[326659042,1715203862882,-166.666666,0.00021918,2]
[326659043,1715203862894,-305.99165233,0.00022,2]
[326659044,1715203862905,-12774.11705581,0.00022,2]
[326659045,1715203862915,-170.87407631,0.00022,2]
[326659046,1715203862924,-494.0,0.00022226,2]
[326659047,1715203862934,-285.713492,0.00022264,2]
[326659048,1715203862943,-430.398791,0.00022264,2]
[326659049,1715203862953,-645.13177338,0.00022344,2]
[326659050,1715203862963,-166.666666,0.00022431,2]
[326659051,1715203862972,-166.666666,0.00022944,2]
[326659052,1715203862982,-1372.02812933,0.00023,2]
[326659053,1715203862991,-154.73694719,0.00023,2]
[326659054,1715203863000,-166.666666,0.00023456,2]
[326659055,1715203863010,-621.25658867,0.00023461,2]
[326659056,1715203863021,-387.5,0.000235,3]
[326659057,1715203863030,-150.0,0.000235,3]
[326659058,1715203863040,-1786.06457088,0.000239,2]
[326659059,1715203863049,-166.666666,0.00023969,2]
[326659060,1715203863059,-166.666666,0.00024482,2]
[326659061,1715203863069,-387.5,0.00024575,5]
[326659062,1715203863078,-150.0,0.00024575,5]
[326659063,1715203863088,-620.06282943,0.00024634,2]
[326659064,1715203863099,-211.6,0.00024647,3]
[326659065,1715203863108,-500.0,0.00024657,2]
[326659066,1715203863117,-500.0,0.00024657,2]
[326659067,1715203863127,-500.0,0.00024657,2]
[326659068,1715203863136,-503.5,0.00024657,2]
[326659069,1715203863145,-500.84140543,0.00024657,2]
[326659070,1715203863155,-500.0,0.00024657,2]
[326659071,1715203863164,-500.0,0.00024657,2]
[326659072,1715203863173,-500.0,0.00024657,2]
[326659073,1715203863182,-500.0,0.00024657,2]
[326659074,1715203863191,-500.0,0.00024657,2]
[326659075,1715203863201,-500.0,0.00024657,2]
[326659076,1715203863210,-500.0,0.00024657,2]
[326659077,1715203863221,-500.0,0.00024657,2]
[326659078,1715203863231,-500.0,0.00024657,2]
[326659079,1715203863241,-500.00554308,0.00024657,2]
[326659080,1715203863250,-500.0,0.00024657,2]
[326659081,1715203863260,-500.0,0.00024657,2]
[326659082,1715203863270,-500.0,0.00024657,2]
[326659083,1715203863279,-500.0,0.00024657,2]
[326659084,1715203863288,-497.22129951,0.00024657,2]
[326659085,1715203863298,-396.82341215,0.00024657,2]
[326659086,1715203863307,-500.0,0.00024657,2]
[326659087,1715203863317,-500.0,0.00024657,2]
[326659088,1715203863326,-500.0,0.00024657,2]
[326659089,1715203863336,-503.64372559,0.00024657,2]
[326659090,1715203863345,-500.0,0.00024657,2]
[326659091,1715203863354,-500.0,0.00024657,2]
[326659092,1715203863363,-500.0,0.00024657,2]
[326659093,1715203863372,-500.0,0.00024657,2]
[326659094,1715203863386,-500.0,0.00024657,2]
[326659095,1715203863396,-500.0,0.00024657,2]
[326659096,1715203863406,-500.0,0.00024657,2]
[326659097,1715203863416,-500.0,0.00024657,2]
[326659098,1715203863425,-500.0,0.00024657,2]
[326659099,1715203863435,-500.0,0.00024657,2]
[326659100,1715203863444,-500.0,0.00024657,2]
[326659101,1715203863454,-660.56,0.00024657,2]
[326659102,1715203863463,-500.0,0.00024657,2]
[326659103,1715203863473,-500.0,0.00024657,2]
[326659104,1715203863483,-500.0,0.00024657,2]
[326659105,1715203863492,-500.0,0.00024657,2]
[326659106,1715203863502,-500.0,0.00024657,2]
[326659107,1715203863511,-500.0,0.00024657,2]
[326659108,1715203863522,-500.0,0.00024657,2]
[326659109,1715203863531,-500.0,0.00024657,2]
[326659110,1715203863540,-500.0,0.00024657,2]
[326659111,1715203863550,-500.0,0.00024657,2]
[326659112,1715203863559,-500.0,0.00024657,2]
[326659113,1715203863569,-500.0,0.00024657,2]
[326659114,1715203863579,-500.0,0.00024657,2]
[326659115,1715203863589,-500.0,0.00024657,2]
[326659116,1715203863598,-500.0,0.00024657,2]
[326659117,1715203863608,-500.0,0.00024657,2]
[326659118,1715203863617,-500.0,0.00024657,2]
[326659119,1715203863627,-500.0,0.00024657,2]
[326659120,1715203863636,-501.50519942,0.00024657,2]
[326659121,1715203863646,-500.0,0.00024657,2]
[326659122,1715203863655,-500.0,0.00024657,2]
[326659123,1715203863664,-500.0,0.00024657,2]
[326659124,1715203863674,-500.0,0.00024657,2]
[326659125,1715203863683,-500.0,0.00024657,2]
[326659126,1715203863692,-500.0,0.00024657,2]
[326659127,1715203863703,-500.0,0.00024657,2]
[326659128,1715203863712,-500.0,0.00024657,2]
[326659129,1715203863721,-500.0,0.00024657,2]
[326659130,1715203863730,-500.0,0.00024657,2]
[326659131,1715203863739,-500.0,0.00024657,2]
[326659132,1715203863749,-500.0,0.00024657,2]
[326659133,1715203863758,-500.0,0.00024657,2]
[326659134,1715203863769,-500.0,0.00024657,2]
[326659135,1715203863783,-500.0,0.00024657,2]
[326659136,1715203863792,-500.0,0.00024657,2]
[326659137,1715203863801,-500.0,0.00024657,2]
[326659138,1715203863813,-500.0,0.00024657,2]
[326659139,1715203863822,-500.0,0.00024657,2]
[326659140,1715203863832,-500.0,0.00024657,2]
[326659141,1715203863841,-500.0,0.00024657,2]
[326659142,1715203863851,-500.0,0.00024657,2]
[326659143,1715203863864,-500.0,0.00024657,2]
[326659144,1715203863874,-500.0,0.00024657,2]
[326659145,1715203863883,-500.0,0.00024657,2]
[326659146,1715203863892,-500.0,0.00024657,2]
[326659147,1715203863901,-500.0,0.00024657,2]
[326659148,1715203863911,-500.0,0.00024657,2]
[326659149,1715203863920,-500.0,0.00024657,2]
[326659150,1715203863929,-500.0,0.00024657,2]
[326659151,1715203863938,-500.0,0.00024657,2]
[326659152,1715203863948,-500.0,0.00024657,2]
[326659153,1715203863957,-500.0,0.00024657,2]
[326659154,1715203863967,-733.39,0.00024657,2]
[326659155,1715203863978,-500.0,0.00024657,2]
[326659156,1715203863988,-500.0,0.00024657,2]
[326659157,1715203863998,-502.4555927,0.00024657,2]
[326659158,1715203864008,-500.0,0.00024657,2]
[326659159,1715203864018,-500.0,0.00024657,2]